bitfinex/quotes_ETHUSD_20250428
["timestamp","ask_amount","ask_price","bid_price","bid_amount"]
[1745831135641,3.7926,1812.1,1811.5,0.77412236]
[1745831135642,0.3099451,1811.8,1811.5,0.77412236]
[1745831136289,0.3099451,1811.7,1811.5,0.77412236]
[1745831137296,0.3099451,1811.6,1811.5,0.77412236]
[1745831137896,0.3099451,1811.6,1811.5,6.29440941]
[1745831138076,0.3099451,1811.6,1811.5,0.77412236]
[1745831138484,0.3099451,1812.1,1811.5,0.77412236]
[1745831138665,0.64093961,1812.1,1811.5,0.77412236]
[1745831139094,0.3099451,1812.0,1811.5,0.77412236]
[1745831140295,0.3099451,1811.9,1811.5,0.77412236]
[1745831141120,0.3099451,1811.8,1811.5,0.77412236]
[1745831142093,0.3099451,1811.7,1811.5,0.77412236]
[1745831142916,3.0,1812.2,1811.5,0.77412236]
[1745831143148,0.3,1812.1,1811.5,0.77412236]
[1745831143321,3.0,1812.2,1811.5,0.77412236]
[1745831144616,0.30969962,1812.1,1811.5,0.77412236]
[1745831145627,0.30969962,1812.0,1811.5,0.77412236]
[1745831146221,0.30969962,1811.9,1811.5,0.77412236]
[1745831147101,0.30969962,1811.8,1811.5,0.77412236]
[1745831147452,0.30969962,1811.8,1811.6,2.89915684]
[1745831147623,0.30969962,1811.8,1811.7,4.629]
[1745831147826,0.30969962,1811.8,1811.7,4.84841542]
[1745831148001,0.30969962,1811.8,1811.7,5.39921542]
[1745831148403,0.30969962,1812.2,1811.7,5.39921542]
[1745831149431,0.30804372,1812.1,1811.7,5.39921542]
[1745831150329,0.826,1812.3,1811.7,5.39921542]
[1745831152744,1.2715,1812.4,1811.8,0.5508]
[1745831152908,1.2715,1812.4,1811.9,0.2183787]
[1745831153108,1.2715,1812.4,1811.8,0.5508]
[1745831153334,1.2715,1812.4,1811.9,0.21824624]
[1745831153536,1.69865,1812.4,1811.8,0.5508]
[1745831153722,1.69865,1812.4,1811.9,0.2175633]
[1745831154034,1.69865,1812.4,1811.8,0.5508]
[1745831154234,1.69865,1812.4,1812.0,0.21733203]
[1745831154436,1.69865,1812.4,1812.1,4.628]
[1745831154741,1.69865,1812.4,1812.1,4.84514493]
[1745831156240,4.04700684,1812.4,1812.1,4.84514493]
[1745831156942,1.69865,1812.4,1812.1,4.84514493]
[1745831162043,0.30984334,1812.3,1812.1,4.84514493]
[1745831163246,0.30984334,1812.2,1812.1,4.84514493]
[1745831165253,3.47570018,1812.2,1812.1,0.21714493]
[1745831165453,6.8232702,1812.2,1812.1,0.21714493]
[1745831165955,0.8175,1812.1,1811.8,4.601]
[1745831166323,0.30984334,1812.0,1811.8,4.601]
[1745831166522,3.30984334,1812.0,1811.8,4.601]
[1745831166962,0.30984334,1811.9,1811.8,4.601]
[1745831167455,0.30984334,1811.9,1811.8,4.80103361]
[1745831173458,0.30984334,1811.9,1811.8,5.35183361]
[1745831182062,0.30984334,1811.9,1811.8,4.80103361]
[1745831184380,3.30984334,1811.9,1811.8,4.80103361]
[1745831184559,4.09504334,1811.9,1811.8,4.80103361]
[1745831184760,4.09504334,1811.9,1811.4,4.6967907]
[1745831184761,0.7891,1811.8,1811.4,4.6967907]
[1745831184959,3.13745684,1811.5,1811.4,4.6967907]
[1745831185126,3.13745684,1811.5,1811.4,4.601]
[1745831185127,4.06104586,1811.5,1811.4,4.601]
[1745831185466,1.71268902,1811.5,1811.4,4.601]
[1745831186270,1.71268902,1811.5,1811.4,4.3643]
[1745831188666,1.71226034,1811.5,1811.4,4.3643]
[1745831192395,1.71226034,1811.5,1811.4,4.52209052]
[1745831196597,1.71201266,1811.5,1811.4,4.52209052]
[1745831204202,0.30916698,1811.5,1811.4,4.52209052]
[1745831213426,6.46792382,1811.5,1811.4,0.15779052]
[1745831213786,3.0,1811.4,1811.0,4.603]
[1745831213991,2.34835684,1811.2,1811.1,0.13545566]
[1745831214304,3.5744895,1811.2,1811.1,0.13545566]
[1745831214508,3.0,1811.1,1811.0,4.603]
[1745831214923,3.0,1811.1,1811.0,4.73868726]
[1745831215239,3.30916698,1811.1,1811.0,4.73868726]
[1745831216346,4.07256698,1811.1,1811.0,4.73868726]
[1745831216643,4.80635593,1811.1,1811.0,4.73868726]
[1745831217503,4.80635593,1811.1,1811.0,4.603]
[1745831218396,4.80635593,1811.1,1811.0,4.73868726]
[1745831218598,4.80635593,1811.1,1811.0,4.603]
[1745831218799,4.80635593,1811.1,1811.0,4.73092093]
[1745831219007,4.04295593,1811.1,1811.0,4.603]
[1745831219207,0.30916698,1811.1,1811.0,4.603]
[1745831219434,0.30916698,1811.1,1811.0,4.73106497]
[1745831219636,1.09886698,1811.1,1811.0,4.73106497]
[1745831219938,3.44722382,1811.1,1811.0,4.73106497]
[1745831220236,1.09886698,1811.1,1811.0,4.73106497]
[1745831220436,1.60045025,1811.1,1811.0,4.73106497]
[1745831220641,1.60045025,1811.1,1811.0,4.603]
[1745831221325,1.60045025,1811.1,1811.0,4.73106497]
[1745831221527,0.81075025,1811.1,1811.0,4.73106497]
[1745831230609,4.62175025,1811.1,1811.0,0.12806497]
[1745831230812,4.62175025,1811.1,1810.8,4.68085996]
[1745831231147,0.46217502,1811.0,1810.9,0.12829659]
[1745831231345,9.52217502,1811.0,1810.8,4.68085996]
[1745831231543,9.06,1811.0,1810.9,0.12829659]
[1745831231710,9.06,1811.0,1810.8,4.68085996]
[1745831231910,9.36916698,1811.0,1810.9,0.12829659]
[1745831232131,9.36916698,1811.0,1810.8,4.68085996]
[1745831232311,9.36916698,1811.0,1810.9,0.12829659]
[1745831232509,9.36916698,1811.0,1810.8,4.68085996]
[1745831232723,0.30916698,1810.9,1810.8,4.68085996]
[1745831233439,0.30916698,1810.9,1810.8,5.23165996]
[1745831237850,0.30916698,1810.9,1810.8,4.68085996]
[1745831244468,0.30916698,1810.9,1810.8,4.8095802]
[1745831244866,0.30916698,1810.9,1810.2,22.38736522]
[1745831244867,0.8231,1810.6,1810.2,0.28832521]
[1745831245167,13.62663549,1810.9,1809.6,4.604]
[1745831245168,0.8231,1810.2,1809.6,4.604]
[1745831245370,3.0,1810.0,1809.6,4.604]
[1745831245579,0.7786,1809.8,1809.6,4.604]
[1745831245789,0.7786,1809.8,1809.5,4.604]
[1745831246135,0.30916698,1809.7,1809.5,4.604]
[1745831247045,0.30916698,1809.6,1809.5,4.604]
[1745831251587,0.30916698,1809.7,1809.5,4.604]
[1745831252103,0.30916698,1809.6,1809.5,4.604]
[1745831252893,0.30916698,1809.7,1809.5,4.604]
[1745831253576,0.30916698,1809.7,1809.6,0.5508]
[1745831254417,0.30916698,1809.7,1809.5,4.604]
[1745831256101,0.30916698,1809.7,1809.6,0.5508]
[1745831257223,3.0,1810.1,1809.6,0.5508]
[1745831257425,2.34835684,1810.1,1809.6,0.5508]
[1745831257928,0.30778398,1810.0,1809.6,0.5508]
[1745831259122,0.30778398,1809.9,1809.6,0.5508]
[1745831259810,1.06098398,1809.9,1809.5,4.604]
[1745831260013,0.7532,1809.9,1809.5,4.604]
[1745831261135,1.06098398,1809.9,1809.5,4.604]
[1745831261532,0.7532,1809.9,1809.5,4.604]
[1745831262654,0.30778398,1809.8,1809.5,4.604]
[1745831263439,0.30778398,1809.7,1809.5,4.604]
[1745831264142,6.06,1810.0,1809.5,4.604]
[1745831264143,0.30778398,1809.9,1809.5,4.604]
[1745831264724,0.30778398,1809.9,1809.6,0.5508]
[1745831264913,0.30778398,1809.8,1809.6,0.5508]
[1745831265701,0.30778398,1809.9,1809.6,0.5508]
[1745831267008,0.30778398,1809.8,1809.6,0.5508]
[1745831267955,6.06,1810.0,1809.6,0.5508]
[1745831268348,0.30850158,1809.9,1809.6,0.5508]
[1745831269130,0.30850158,1809.8,1809.6,0.5508]
[1745831269961,0.8032,1810.1,1809.6,0.5508]
[1745831269962,0.30850158,1809.7,1809.6,0.5508]
[1745831270164,0.30850158,1809.7,1809.6,5.2338]
[1745831274170,0.30850158,1809.7,1809.6,4.683]
[1745831277854,0.72193174,1809.7,1809.6,4.683]
[1745831284261,0.30850158,1809.7,1809.6,4.683]
[1745831288755,1.08690158,1809.7,1809.6,4.683]
[1745831290478,6.43525842,1809.7,1809.6,4.683]
[1745831290704,3.7569,1809.6,1809.3,4.653]
[1745831291004,0.7569,1809.4,1809.1,4.653]
[1745831291603,0.30850158,1809.3,1809.1,4.653]
[1745831291907,0.30850158,1809.3,1809.2,0.5508]
[1745831292277,0.7968,1809.6,1809.2,0.5508]
[1745831292799,0.31020233,1809.5,1809.2,0.5508]
[1745831293786,0.31020233,1809.4,1809.2,0.5508]
[1745831294911,0.31020233,1809.3,1809.2,0.5508]
[1745831297475,0.31020233,1809.3,1809.1,4.653]
[1745831297676,0.31020233,1809.3,1809.1,5.2038]
[1745831298192,0.31020233,1809.2,1809.1,5.2038]
[1745831299594,0.31020233,1809.2,1809.1,4.653]
[1745831303109,1.12020233,1809.2,1809.1,4.653]
[1745831305810,1.12020233,1809.2,1809.1,4.653]
[1745831306020,0.8147,1809.1,1808.7,21.244]
[1745831306336,0.8147,1808.9,1808.7,21.244]
[1745831306833,0.31020233,1809.0,1808.7,21.244]
[1745831307334,0.31020233,1808.9,1808.7,21.244]
[1745831308119,0.31020233,1808.8,1808.7,21.244]
[1745831316419,0.31020233,1808.8,1808.7,21.244]
[1745831318543,0.31020233,1808.8,1808.7,4.654]
[1745831322757,0.31020233,1808.8,1808.7,5.2048]
[1745831323618,0.8192,1809.3,1808.7,5.2048]
[1745831323818,0.8192,1809.3,1808.8,2.34835684]
[1745831324243,0.8192,1809.3,1808.9,0.5508]
[1745831324639,0.3099428,1809.2,1809.0,2.34835684]
[1745831324847,0.3099428,1809.2,1809.1,4.649]
[1745831328749,0.3099428,1809.2,1809.1,4.61900265]
[1745831338949,0.3099428,1809.2,1809.1,5.16980265]
[1745831340868,0.3099428,1809.2,1809.1,4.61900265]
[1745831341981,0.3099428,1809.2,1809.1,5.16980265]
[1745831344976,0.3099428,1809.2,1809.1,11.24741306]
[1745831345863,0.3099428,1809.8,1809.3,0.5508]
[1745831346065,0.3099428,1809.8,1809.5,2.34835684]
[1745831346265,0.3099428,1809.8,1809.6,4.648]
[1745831346505,0.3099428,1809.7,1809.6,4.648]
[1745831353209,0.3099428,1809.7,1809.6,11.27488311]
[1745831354299,0.3099428,1810.1,1809.6,11.27488311]
[1745831354471,0.3099428,1810.1,1809.8,2.34835684]
[1745831355112,0.3099428,1810.0,1809.8,2.34835684]
[1745831355987,0.3099428,1809.9,1809.8,2.34835684]
[1745831356683,0.3099428,1810.1,1809.8,2.34835684]
[1745831357611,0.3099428,1810.0,1809.8,2.34835684]
[1745831358389,0.771,1810.2,1809.9,0.5508]
[1745831358609,0.8328,1810.5,1810.0,4.625]
[1745831358976,0.30916169,1810.4,1810.0,6.97335684]
[1745831360307,0.30916169,1810.3,1810.0,6.97335684]
[1745831361091,0.8328,1810.5,1810.2,2.34835684]
[1745831361405,0.7572,1810.7,1810.4,2.34835684]
[1745831361601,0.7572,1810.7,1810.5,4.625]
[1745831362144,0.30886509,1810.6,1810.5,4.625]
[1745831363012,1.14196509,1810.9,1810.5,4.625]
[1745831363910,0.30886509,1810.8,1810.5,4.625]
[1745831364502,0.7973,1810.7,1810.5,4.625]
[1745831364921,0.30886509,1810.6,1810.5,4.625]
[1745831367959,0.7959,1810.5,1810.4,4.624]
[1745831368572,0.7959,1810.5,1810.3,4.624]
[1745831368755,0.30886509,1810.4,1810.3,4.624]
[1745831376979,1.11346509,1810.4,1810.3,4.624]
[1745831378071,4.11346509,1810.4,1810.3,4.624]
[1745831378257,4.75964728,1810.4,1810.3,4.624]
[1745831380801,5.17889806,1810.4,1810.3,4.624]
[1745831381181,4.75964728,1810.4,1810.3,4.624]
[1745831384509,1.75964728,1810.4,1810.3,4.624]
[1745831384683,1.11346509,1810.4,1810.3,4.624]
[1745831391222,0.30886509,1810.4,1810.3,4.624]
[1745831404448,0.30886509,1810.4,1810.3,5.1748]
[1745831412135,0.30886509,1810.4,1810.3,10.6987463]
[1745831412458,0.7801,1810.9,1810.3,10.6987463]
[1745831412752,0.7801,1810.9,1810.5,2.34835684]
[1745831413059,0.30968924,1810.8,1810.5,2.34835684]
[1745831413445,0.30968924,1810.8,1810.5,2.89915684]
[1745831414120,0.30968924,1810.7,1810.5,2.89915684]
[1745831414921,0.30968924,1810.6,1810.5,2.89915684]
[1745831416023,0.30968924,1810.6,1810.5,8.42249293]
[1745831416363,0.30968924,1810.9,1810.5,8.42249293]
[1745831416518,0.30968924,1810.9,1810.8,0.5508]
[1745831416719,0.30968924,1810.9,1810.8,5.1578]
[1745831418783,0.30968924,1811.1,1810.8,5.1578]
[1745831418969,0.30968924,1811.1,1811.0,2.34835684]
[1745831419838,0.30968924,1811.1,1810.8,7.50615684]
[1745831420377,0.30968924,1811.0,1810.8,7.50615684]
[1745831421278,0.30968924,1811.3,1810.8,7.50615684]
[1745831422277,0.30968924,1811.2,1810.8,7.50615684]
[1745831422778,0.30968924,1811.1,1810.8,7.50615684]
[1745831423450,0.826,1811.4,1810.8,7.50615684]
[1745831424180,0.826,1811.4,1811.0,2.34835684]
[1745831424775,0.30905234,1811.3,1811.0,2.34835684]
[1745831425877,0.30905234,1811.2,1810.9,2.34835684]
[1745831426202,0.30905234,1811.2,1810.8,4.607]
[1745831426203,0.30905234,1811.2,1811.1,2.34835684]
[1745831426639,0.30905234,1811.4,1811.1,2.34835684]
[1745831429497,0.30905234,1811.4,1811.2,5.1568]
[1745831429650,0.30905234,1811.6,1811.2,5.1568]
[1745831430481,0.30905234,1811.5,1811.2,5.1568]
[1745831430967,0.30905234,1811.4,1811.2,5.1568]
[1745831431769,0.30905234,1811.6,1811.3,2.54784052]
[1745831432662,0.30905234,1811.5,1811.3,2.54784052]
[1745831433176,0.30905234,1811.5,1811.3,0.19948368]
[1745831433375,0.30905234,1811.6,1811.3,0.19948368]
[1745831434386,0.30905234,1811.6,1811.3,2.54784052]
[1745831434574,0.30905234,1811.5,1811.3,2.54784052]
[1745831435790,0.30905234,1811.6,1811.3,2.54784052]
[1745831436526,0.30905234,1811.5,1811.3,2.54784052]
[1745831437418,0.30905234,1811.6,1811.3,2.54784052]
[1745831438411,0.30905234,1811.5,1811.3,2.54784052]
[1745831439126,0.30905234,1811.6,1811.3,2.54784052]
[1745831439420,0.30905234,1811.6,1811.3,0.19948368]
[1745831439725,0.30905234,1811.5,1811.3,0.19948368]
[1745831440205,0.7567,1811.7,1811.3,0.19948368]
[1745831440829,0.30912087,1811.6,1811.3,0.19948368]
[1745831441442,0.7734,1811.5,1811.3,0.19948368]
[1745831441627,0.8297,1811.4,1811.3,4.80448368]
[1745831441833,0.8297,1811.4,1811.3,4.605]
[1745831442011,1.13882087,1811.4,1811.3,4.7830903]
[1745831442337,1.82779087,1811.4,1811.3,4.7830903]
[1745831445728,0.99809087,1811.4,1811.3,4.7830903]
[1745831445951,1.82779087,1811.4,1811.3,4.7830903]
[1745831446516,13.78614771,1811.4,1811.3,0.1780903]
[1745831446737,3.8293,1811.3,1810.9,4.605]
[1745831446940,0.8293,1810.9,1810.7,4.605]
[1745831447144,0.8293,1810.7,1810.4,16.572]
[1745831447417,0.7782,1810.6,1810.5,4.605]
[1745831447622,2.34835684,1810.6,1810.4,21.177]
[1745831447872,1.08732087,1810.5,1810.4,4.605]
[1745831448035,7.49088864,1810.5,1810.4,4.605]
[1745831454263,7.49088864,1810.5,1810.4,4.72009566]
[1745831458377,7.49088864,1810.5,1810.4,0.11509566]
[1745831458874,7.49088864,1810.5,1810.4,0.11910399]
[1745831459080,7.49088864,1810.5,1810.2,4.607]
[1745831459238,0.74908886,1810.4,1810.2,4.607]
[1745831459874,1.05820973,1810.4,1810.2,4.607]
[1745831461777,0.8079,1810.2,1808.9,0.7289]
[1745831461977,3.0,1809.8,1809.2,4.607]
[1745831462183,0.8079,1809.6,1809.2,4.607]
[1745831462584,0.8012,1809.5,1809.2,4.607]
[1745831462784,3.0,1809.4,1809.2,4.607]
[1745831463266,0.30912087,1809.3,1809.2,4.607]
[1745831464887,3.0,1809.4,1809.2,4.607]
[1745831465093,0.3,1809.3,1809.2,4.607]
[1745831465965,0.60717301,1809.3,1809.2,4.607]
[1745831466557,0.3,1809.3,1809.2,4.607]
[1745831468289,6.36,1809.3,1809.2,4.607]
[1745831469263,6.06,1809.3,1809.2,4.73395669]
[1745831469663,0.7851,1809.7,1809.2,4.73395669]
[1745831469985,0.30699711,1809.8,1809.3,0.7289]
[1745831470169,0.30699711,1809.8,1809.4,0.10780216]
[1745831470509,0.30699711,1809.8,1809.6,0.7289]
[1745831470669,0.30699711,1809.8,1809.7,4.661]
[1745831470870,0.30699711,1809.8,1809.7,4.76713204]
[1745831471066,6.8451,1810.3,1809.7,4.76713204]
[1745831471067,0.30699711,1810.2,1809.7,4.76713204]
[1745831471275,0.30699711,1810.2,1809.7,7.11548888]
[1745831471466,0.30699711,1810.2,1809.8,0.7289]
[1745831471668,0.30699711,1810.2,1810.0,0.7289]
[1745831472007,0.30699711,1810.7,1810.1,7.00935684]
[1745831472212,0.30699711,1810.7,1810.3,3.07725684]
[1745831472572,0.30699711,1810.7,1810.5,2.34835684]
[1745831472771,0.30699711,1810.7,1810.6,5.3899]
[1745831472988,0.30699711,1811.4,1810.6,5.3899]
[1745831473309,0.30699711,1811.4,1811.0,2.34835684]
[1745831473513,0.30699711,1811.4,1811.1,4.661]
[1745831474208,3.0,1811.6,1811.1,4.661]
[1745831474397,0.3,1811.5,1811.1,4.661]
[1745831474798,0.60699711,1811.5,1811.1,4.661]
[1745831475175,0.60699711,1811.5,1810.8,0.7289]
[1745831475381,0.8047,1811.4,1810.9,4.66]
[1745831475721,1.11169711,1811.4,1810.9,4.66]
[1745831476208,3.0,1811.2,1810.9,4.66]
[1745831476511,0.3,1811.1,1810.9,4.66]
[1745831477211,0.60699711,1811.1,1810.9,4.66]
[1745831478119,0.60699711,1811.1,1810.8,4.66]
[1745831479201,0.30699711,1811.1,1810.8,4.66]
[1745831479726,0.30699711,1811.3,1810.8,4.66]
[1745831479909,3.0,1811.2,1810.8,4.66]
[1745831480425,0.7938,1811.1,1810.8,4.66]
[1745831480624,3.0,1810.9,1810.4,16.588]
[1745831480926,1.0864,1810.8,1810.7,4.659]
[1745831481103,1.0864,1810.8,1810.4,21.247]
[1745831481813,0.30699711,1810.7,1810.4,21.247]
[1745831482840,1.09339711,1810.8,1810.4,21.247]
[1745831485736,7.15339711,1810.8,1810.4,21.247]
[1745831486035,0.71533971,1810.7,1810.4,21.247]
[1745831488536,6.8464,1810.8,1810.4,21.247]
[1745831493401,0.30722435,1810.7,1810.4,21.247]
[1745831496499,0.30722435,1810.7,1810.4,4.659]
[1745831497413,6.36722435,1810.7,1810.4,4.659]
[1745831497809,3.30722435,1810.6,1810.4,4.659]
[1745831497999,1.11642243,1810.5,1809.9,0.7289]
[1745831498204,1.11642243,1810.5,1809.8,16.58]
[1745831498205,6.39072243,1810.5,1810.0,4.659]
[1745831498404,0.7857,1810.4,1810.0,4.659]
[1745831498949,6.36722435,1810.3,1810.0,4.659]
[1745831499104,3.63672244,1810.2,1810.0,4.659]
[1745831499929,0.30722435,1810.1,1810.0,4.659]
[1745831502606,0.30722435,1810.1,1809.7,0.7289]
[1745831502802,0.30722435,1810.1,1809.2,6.07711447]
[1745831502803,3.0,1809.9,1809.6,4.696]
[1745831503035,0.7621,1809.7,1809.4,4.696]
[1745831503360,3.7621,1809.7,1809.3,4.696]
[1745831503505,0.30722435,1809.6,1809.5,0.12432356]
[1745831503701,0.30722435,1809.6,1809.4,0.12460973]
[1745831503900,0.30722435,1809.6,1809.5,0.12432356]
[1745831504103,0.71415679,1809.6,1809.5,0.12432356]
[1745831504649,6.77415679,1809.6,1809.3,4.696]
[1745831504818,0.8023,1809.4,1809.3,4.696]
[1745831505165,1.10952435,1809.4,1809.3,4.82089593]
[1745831507148,0.30722435,1809.4,1809.3,4.82089593]
[1745831510737,1.24394679,1809.4,1809.3,4.82089593]
[1745831510929,0.30722435,1809.4,1809.3,4.82089593]
[1745831512261,0.30722435,1809.4,1809.3,5.54979593]
[1745831512763,3.0,1809.8,1809.3,4.82089593]
[1745831512764,0.30722435,1809.8,1809.3,4.82089593]
[1745831512971,3.0,1809.7,1809.3,4.82089593]
[1745831513134,0.7858,1809.6,1809.3,4.82089593]
[1745831513329,1.09302435,1809.6,1809.3,4.82089593]
[1745831514035,0.7858,1809.6,1809.3,4.82089593]
[1745831514871,1.09408289,1809.6,1809.3,4.82089593]
[1745831515029,1.50349118,1809.6,1809.3,4.82089593]
[1745831515361,0.30828289,1809.5,1809.3,4.82089593]
[1745831517943,6.36828289,1809.5,1809.3,4.82089593]
[1745831519276,0.30828289,1809.4,1809.3,4.82089593]
[1745831525492,0.30828289,1809.4,1809.3,4.82289593]
[1745831527025,4.72071118,1809.4,1809.3,0.12489593]
[1745831527383,4.72071118,1809.4,1809.0,4.698]
[1745831527620,4.72071118,1809.4,1809.3,0.11262153]
[1745831527792,0.30828289,1809.3,1809.0,4.698]
[1745831528583,0.30828289,1809.2,1809.0,4.698]
[1745831528978,0.30828289,1809.2,1809.1,0.7289]
[1745831529406,0.30828289,1809.2,1809.1,0.8427148]
[1745831531024,0.30828289,1809.2,1809.1,0.1138148]
[1745831531200,0.30828289,1809.2,1809.1,4.8348148]
[1745831531525,0.30828289,1809.2,1809.1,4.83424185]
[1745831538237,0.94511118,1809.2,1809.1,4.83424185]
[1745831538818,3.94511118,1809.2,1809.1,4.83424185]
[1745831539150,4.75981118,1809.2,1809.1,4.83424185]
[1745831540242,3.30828289,1809.2,1809.1,4.83424185]
[1745831540432,0.30828289,1809.2,1809.1,4.83424185]
[1745831550016,0.30828289,1809.2,1809.1,5.56314185]
[1745831551029,0.30828289,1809.2,1809.1,4.83424185]
[1745831551511,0.30828289,1809.2,1809.1,4.83524185]
[1745831553392,1.08008289,1809.2,1809.1,0.11324185]
[1745831553590,1.423536,1809.2,1809.1,0.11324185]
[1745831554327,4.423536,1809.2,1809.1,0.11324185]
[1745831556125,10.483536,1809.2,1809.1,0.11324185]
[1745831557217,10.483536,1809.2,1809.1,0.11324185]
[1745831559518,10.483536,1809.2,1809.0,4.722]
[1745831560411,0.30828289,1809.1,1809.0,4.722]
[1745831563431,4.35663649,1809.1,1809.0,4.722]
[1745831571683,4.35663649,1809.1,1808.6,0.7289]
[1745831571817,3.30828289,1809.1,1808.9,4.693]
[1745831572345,0.30828289,1809.0,1808.9,4.693]
[1745831572548,0.7728,1808.9,1808.4,16.593]
[1745831572717,2.35444819,1808.7,1808.5,4.693]
[1745831572912,3.0,1808.7,1808.5,4.693]
[1745831573147,0.30828289,1808.6,1808.5,4.693]
[1745831575149,1.08258289,1808.6,1808.0,0.7289]
[1745831575458,1.08258289,1808.6,1808.1,4.693]
[1745831575661,0.30828289,1808.6,1808.2,0.7289]
[1745831575962,0.30828289,1808.6,1808.2,1.27109]
[1745831576130,0.30828289,1808.5,1808.2,2.35444819]
[1745831576330,0.30828289,1808.5,1808.3,0.7289]
[1745831576759,6.06,1808.8,1808.3,0.7289]
[1745831577365,0.31020071,1808.7,1808.3,0.7289]
[1745831577662,0.31020071,1808.6,1808.3,0.7289]
[1745831577968,0.31020071,1808.5,1808.3,0.7289]
[1745831578334,6.8911,1809.0,1808.3,0.7289]
[1745831578528,0.3102064,1808.9,1808.3,0.7289]
[1745831579194,0.3102064,1808.8,1808.3,0.7289]
[1745831579531,0.31021973,1808.7,1808.3,0.7289]
[1745831580270,0.31021973,1808.6,1808.3,0.7289]
[1745831580667,0.31021973,1808.5,1808.3,0.7289]
[1745831581693,3.8311,1809.0,1808.3,5.53001541]
[1745831581852,3.8311,1809.0,1808.4,0.7289]
[1745831582055,3.8311,1809.0,1808.5,4.693]
[1745831582438,0.31033496,1808.9,1808.5,4.693]
[1745831583658,0.31033496,1808.8,1808.5,4.693]
[1745831584276,0.31033496,1808.7,1808.5,4.693]
[1745831585085,0.31033496,1808.6,1808.5,4.693]
[1745831596786,9.37033496,1808.6,1808.5,4.693]
[1745831597596,10.16223496,1808.6,1808.5,4.693]
[1745831598403,10.16223496,1808.6,1808.2,4.691]
[1745831599415,0.31033496,1808.5,1808.2,4.691]
[1745831599717,1.32655846,1808.5,1808.2,4.691]
[1745831600214,0.8209,1808.4,1808.2,4.691]
[1745831600379,1.13123496,1808.4,1808.2,4.691]
[1745831601116,0.31033496,1808.3,1808.2,4.691]
[1745831606756,0.31033496,1808.3,1808.2,5.4199]
[1745831610949,0.31033496,1808.5,1808.2,4.691]
[1745831611117,0.31033496,1808.5,1808.3,0.7289]
[1745831611450,0.31033496,1808.5,1808.3,2.35444819]
[1745831611666,0.31033496,1808.5,1808.4,0.7289]
[1745831613556,0.31033496,1808.5,1808.3,0.7289]
[1745831613732,0.31033496,1808.4,1808.3,0.7289]
[1745831614657,0.31033496,1808.7,1808.3,2.35444819]
[1745831614845,0.31033496,1808.7,1808.4,0.7289]
[1745831615556,0.7815,1809.0,1808.4,0.7289]
[1745831616523,0.31005161,1808.9,1808.4,0.7289]
[1745831617286,0.31005161,1808.8,1808.4,0.7289]
[1745831618122,0.31005161,1808.7,1808.4,0.7289]
[1745831618258,0.31005161,1808.7,1808.6,0.7289]
[1745831618455,0.31005161,1808.7,1808.6,5.4199]
[1745831620187,0.31005161,1809.0,1808.7,0.7289]
[1745831621053,6.06,1809.2,1808.7,0.7289]
[1745831621860,0.30963482,1809.1,1808.7,0.7289]
[1745831622355,0.30963482,1809.1,1808.8,0.7289]
[1745831623554,0.30963482,1809.3,1808.8,0.7289]
[1745831623754,0.7168383,1809.3,1808.8,0.7289]
[1745831624586,0.30963482,1809.2,1808.8,0.7289]
[1745831625389,0.7635,1809.1,1808.7,0.7289]
[1745831625967,3.7635,1809.1,1808.6,5.4199]
[1745831626171,0.30963482,1809.0,1808.6,5.4199]
[1745831626385,0.7169483,1809.0,1808.6,5.4199]
[1745831627195,0.7169483,1809.0,1808.6,4.691]
[1745831627196,0.30963482,1808.9,1808.6,4.691]
[1745831627962,0.30963482,1808.8,1808.6,4.691]
[1745831628762,0.30963482,1808.9,1808.6,4.691]
[1745831629785,0.30963482,1808.8,1808.6,4.691]
[1745831630696,0.30963482,1808.7,1808.6,4.691]
[1745831631294,0.30963482,1808.7,1808.4,0.7289]
[1745831631500,0.30963482,1808.7,1808.6,4.667]
[1745831635468,0.30994445,1808.7,1808.6,4.667]
[1745831642585,0.8221,1809.0,1808.6,4.667]
[1745831642787,0.31033348,1808.7,1808.6,4.667]
[1745831644525,0.8221,1809.0,1808.6,4.667]
[1745831644699,0.31037782,1808.7,1808.6,4.667]
[1745831652548,0.31037782,1808.7,1808.6,7.75034819]
[1745831659598,0.31037782,1808.7,1808.6,4.667]
[1745831660757,0.31037782,1808.7,1808.6,5.3959]
[1745831660922,0.31037782,1808.7,1808.6,7.75034819]
[1745831668344,0.31037782,1808.7,1808.6,13.27948675]
[1745831668714,0.31037782,1808.7,1808.6,7.75034819]
[1745831669738,0.31037782,1808.7,1808.6,5.3959]
[1745831671352,0.31037782,1808.7,1808.6,4.667]
[1745831675349,1.07207782,1808.7,1808.6,4.667]
[1745831678254,0.31037782,1808.7,1808.6,4.667]
[1745831685682,0.31037782,1808.7,1808.6,5.3959]
[1745831685979,0.31037782,1808.7,1808.6,7.75034819]
[1745831687476,0.31037782,1809.0,1808.9,0.7289]
[1745831687660,0.31037782,1809.0,1808.9,7.70234819]
[1745831687848,0.31037782,1809.0,1808.9,16.78056976]
[1745831688047,0.31037782,1809.0,1808.9,14.42612157]
[1745831688252,0.31037782,1809.4,1808.9,14.42612157]
[1745831688435,0.31037782,1809.4,1809.0,2.35444819]
[1745831689462,0.31037782,1809.3,1809.0,2.35444819]
[1745831690040,0.31037782,1809.2,1809.0,2.35444819]
[1745831690255,0.31037782,1809.2,1809.0,2.76090874]
[1745831690979,0.8291,1809.5,1809.0,2.76090874]
[1745831691879,0.31000832,1809.4,1809.0,2.76090874]
[1745831692181,0.31000832,1809.3,1809.0,8.28874474]
[1745831692343,0.31000832,1809.3,1809.0,2.76090874]
[1745831692856,0.8291,1809.5,1809.0,2.76090874]
[1745831692857,0.31000832,1809.4,1809.0,2.76090874]
[1745831693455,0.31000832,1809.4,1809.0,8.28879581]
[1745831694159,0.8291,1809.5,1809.0,8.28879581]
[1745831694663,0.8107,1809.8,1809.2,2.35444819]
[1745831694872,0.8107,1809.8,1809.3,4.618]
[1745831695558,0.30958393,1809.7,1809.3,4.618]
[1745831696596,0.30958393,1809.6,1809.3,4.618]